bitfinex/quotes_BTCUSD_20250316
["timestamp","ask_amount","ask_price","bid_price","bid_amount"]
[1742139924941,0.73691336,83461.0,83460.0,8e-07]
[1742139925913,0.41127361,83461.0,83460.0,8e-07]
[1742139926407,0.42325461,83461.0,83460.0,8e-07]
[1742139928062,0.66288661,83461.0,83460.0,8e-07]
[1742139929864,0.65888661,83461.0,83460.0,8e-07]
[1742139930107,0.65488661,83461.0,83460.0,8e-07]
[1742139930466,0.65988661,83461.0,83460.0,8e-07]
[1742139930848,1.07678661,83461.0,83460.0,8e-07]
[1742139931053,0.23971,83434.0,83429.0,0.011986]
[1742139931295,0.00415264,83433.0,83428.0,0.239727]
[1742139931471,0.00415264,83433.0,83430.0,0.011986]
[1742139931670,0.239702,83437.0,83431.0,0.011985]
[1742139931956,0.47966931,83440.0,83426.0,0.0821]
[1742139931957,0.251716,83427.0,83426.0,0.0821]
[1742139932188,0.25588568,83427.0,83426.0,0.0821]
[1742139932407,0.25588568,83427.0,83426.0,0.08222394]
[1742139932608,0.25608116,83427.0,83426.0,0.08222394]
[1742139933104,0.25608116,83427.0,83426.0,0.00412394]
[1742139933901,0.25600297,83427.0,83426.0,0.00412394]
[1742139934276,0.27303099,83427.0,83426.0,0.00412394]
[1742139934492,0.27303099,83427.0,83426.0,0.00012394]
[1742139934870,0.27303099,83427.0,83426.0,0.00112394]
[1742139935295,0.27303099,83427.0,83426.0,0.00012394]
[1742139935454,0.3554727,83427.0,83426.0,0.00012394]
[1742139935659,0.35553506,83427.0,83426.0,0.00012394]
[1742139936954,0.35653506,83427.0,83426.0,0.00012394]
[1742139937463,0.27409335,83427.0,83426.0,0.00012394]
[1742139937970,0.27609335,83427.0,83426.0,0.00012394]
[1742139938328,0.011987,83420.0,83412.0,0.251759]
[1742139938540,0.251719,83426.0,83420.0,0.251736]
[1742139938884,0.011987,83422.0,83417.0,0.011987]
[1742139939176,0.011987,83422.0,83411.0,0.011988]
[1742139939177,0.02002802,83427.0,83423.0,0.251727]
[1742139939405,0.01802802,83427.0,83423.0,0.251727]
[1742139939655,0.001,83427.0,83426.0,0.251719]
[1742139939871,0.251677,83440.0,83435.0,0.011985]
[1742139940138,0.239697,83439.0,83432.0,0.011985]
[1742139940371,0.251679,83440.0,83435.0,0.239706]
[1742139940595,0.239672,83448.0,83442.0,0.011984]
[1742139940819,0.239666,83450.0,83444.0,0.011984]
[1742139941061,0.02079097,83448.0,83444.0,0.011984]
[1742139941250,0.251651,83449.0,83444.0,0.011984]
[1742139941395,0.251651,83449.0,83444.0,0.009984]
[1742139941777,0.239673,83447.0,83442.0,0.011984]
[1742139941983,0.239689,83442.0,83437.0,0.01454085]
[1742139942205,0.011983,83445.0,83438.0,0.239698]
[1742139942570,0.011983,83445.0,83440.0,0.251675]
[1742139942787,0.011983,83445.0,83439.0,0.251678]
[1742139942788,0.251667,83444.0,83439.0,0.251678]
[1742139942995,0.23969,83441.0,83434.0,0.25424885]
[1742139943205,0.239687,83442.0,83437.0,0.2397]
[1742139943398,0.00022759,83440.0,83438.0,0.25168]
[1742139943613,0.00023048,83441.0,83440.0,0.239693]
[1742139943742,0.239681,83444.0,83440.0,0.239693]
[1742139944191,0.004,83447.0,83442.0,0.239685]
[1742139944477,0.003,83445.0,83444.0,0.251665]
[1742139944591,0.004,83447.0,83446.0,0.251658]
[1742139944804,0.0001238,83450.0,83449.0,0.25165]
[1742139945007,0.0001238,83450.0,83449.0,0.33145]
[1742139945405,0.0001238,83450.0,83449.0,0.32845]
[1742139945852,0.0001238,83450.0,83449.0,0.34299085]
[1742139946108,0.0001238,83450.0,83449.0,0.34099085]
[1742139946936,0.0001238,83450.0,83449.0,0.34199085]
[1742139947376,0.0001238,83450.0,83449.0,0.34299085]
[1742139947973,0.0001238,83450.0,83449.0,0.34599085]
[1742139948207,0.0001238,83450.0,83449.0,0.33145]
[1742139948542,0.0001238,83450.0,83449.0,0.0818]
[1742139948746,0.00451952,83450.0,83449.0,0.33345]
[1742139948951,0.00423843,83450.0,83449.0,0.33845]
[1742139949149,0.0001238,83450.0,83449.0,0.33845]
[1742139949364,0.0001238,83450.0,83449.0,0.33345]
[1742139949695,0.0001238,83450.0,83449.0,0.33445]
[1742139950087,0.0001238,83450.0,83449.0,0.33745]
[1742139950289,0.00038028,83450.0,83449.0,0.097783]
[1742139950503,0.00038028,83450.0,83449.0,0.0858]
[1742139951326,0.00038028,83450.0,83449.0,0.097783]
[1742139952053,0.00038028,83450.0,83449.0,0.11232385]
[1742139952600,0.0001238,83450.0,83449.0,0.11232385]
[1742139952791,0.0001238,83450.0,83449.0,0.097783]
[1742139953018,0.0001238,83450.0,83449.0,0.11232385]
[1742139954203,0.0001238,83450.0,83449.0,0.11266245]
[1742139955107,0.0002931,83450.0,83449.0,0.11266245]
[1742139957910,0.0002931,83450.0,83449.0,0.80908991]
[1742139958045,0.0002931,83450.0,83449.0,0.80789171]
[1742139958808,0.0002931,83450.0,83449.0,0.80489171]
[1742139959236,0.0002931,83450.0,83449.0,0.81089171]
[1742139959996,0.0002931,83450.0,83449.0,0.80789171]
[1742139960373,0.0002931,83450.0,83449.0,0.81289171]
[1742139960716,0.0002931,83450.0,83449.0,0.80189171]
[1742139960872,0.0010001,83450.0,83449.0,0.81289171]
[1742139961058,0.0010001,83450.0,83449.0,0.86199171]
[1742139961714,1e-07,83450.0,83449.0,0.86199171]
[1742139965421,1e-07,83450.0,83449.0,0.86498565]
[1742139965620,1e-07,83450.0,83449.0,0.85898565]
[1742139965847,0.0001693,83481.0,83480.0,0.251556]
[1742139966063,0.00021061,83481.0,83480.0,0.26609685]
[1742139968239,0.00021061,83481.0,83480.0,0.56609685]
[1742139968578,0.00021061,83481.0,83480.0,0.64199685]
[1742139968782,0.00021061,83481.0,83480.0,0.64599685]
[1742139970389,0.00021061,83481.0,83480.0,0.69909685]
[1742139970390,6.1e-07,83481.0,83480.0,0.69909685]
[1742139970590,6.1e-07,83481.0,83480.0,1.09032611]
[1742139970740,6.1e-07,83481.0,83480.0,1.09232611]
[1742139971110,6.1e-07,83481.0,83480.0,1.09832611]
[1742139971713,6.1e-07,83481.0,83480.0,1.09232611]
[1742139971964,6.1e-07,83481.0,83480.0,1.09832611]
[1742139972808,6.1e-07,83481.0,83480.0,1.09232611]
[1742139972990,6.1e-07,83481.0,83480.0,1.09832611]
[1742139973205,8.1e-07,83488.0,83487.0,0.676535]
[1742139974030,8.1e-07,83488.0,83487.0,0.69107585]
[1742139974468,8.1e-07,83488.0,83487.0,0.69707585]
[1742139974871,8.1e-07,83488.0,83487.0,1.09230511]
[1742139975585,8.1e-07,83488.0,83487.0,1.08630511]
[1742139975931,8.1e-07,83488.0,83487.0,1.09230511]
[1742139976546,8.1e-07,83488.0,83487.0,1.09830511]
[1742139976704,8.1e-07,83488.0,83487.0,1.09230511]
[1742139976911,8.1e-07,83488.0,83487.0,1.09830511]
[1742139977310,8.1e-07,83488.0,83487.0,1.09230511]
[1742139978344,8.1e-07,83488.0,83487.0,1.08630511]
[1742139978517,8.1e-07,83488.0,83487.0,1.09230511]
[1742139979294,8.1e-07,83488.0,83487.0,1.09830511]
[1742139982619,8.1e-07,83488.0,83487.0,1.09230511]
[1742139982810,8.1e-07,83488.0,83487.0,1.09830511]
[1742139983022,8.1e-07,83488.0,83487.0,1.23494511]
[1742139983418,8.1e-07,83488.0,83487.0,1.22894511]
[1742139983876,8.1e-07,83488.0,83487.0,1.23494511]
[1742139984075,8.1e-07,83488.0,83487.0,1.22894511]
[1742139984253,8.1e-07,83488.0,83487.0,1.08630511]
[1742139984459,8.1e-07,83488.0,83487.0,1.22894511]
[1742139984659,8.1e-07,83488.0,83487.0,1.23494511]
[1742139985260,1.1e-07,83494.0,83493.0,0.251518]
[1742139985463,1.1e-07,83494.0,83493.0,0.64275885]
[1742139986610,1.1e-07,83494.0,83493.0,1.04298811]
[1742139986816,1.1e-07,83494.0,83493.0,1.04898811]
[1742139987419,3.1e-07,83500.0,83499.0,0.551499]
[1742139987632,3.1e-07,83500.0,83499.0,0.96126911]
[1742139987829,3.1e-07,83500.0,83499.0,1.08326911]
[1742139988333,0.04927919,83530.0,83529.0,0.239437]
[1742139988490,0.06166346,83530.0,83517.0,0.011973]
[1742139988697,0.239447,83526.0,83518.0,0.25400885]
[1742139988895,0.23945,83525.0,83518.0,0.26598185]
[1742139989140,0.2609733,83525.0,83518.0,0.26598185]
[1742139989320,0.0215233,83525.0,83522.0,0.011972]
[1742139989519,0.0215233,83525.0,83521.0,0.011973]
[1742139989942,0.0215233,83525.0,83520.0,0.239462]
[1742139990187,0.0215233,83525.0,83516.0,0.01454085]
[1742139990312,0.239453,83524.0,83518.0,0.01454085]
[1742139990525,0.0215233,83525.0,83520.0,0.239462]
[1742139990899,0.00043969,83524.0,83520.0,0.239462]
[1742139991596,0.00043969,83524.0,83518.0,0.011973]
[1742139991597,0.00043969,83524.0,83518.0,0.26598085]
[1742139991956,0.00043969,83524.0,83520.0,0.240463]
[1742139992341,0.00043969,83524.0,83520.0,0.001]
[1742139992574,0.25186469,83524.0,83520.0,0.001]
[1742139992991,0.239456,83523.0,83520.0,0.001]
[1742139993192,0.00043392,83522.0,83517.0,0.01454085]
[1742139993648,0.00043392,83522.0,83519.0,0.01454085]
[1742139994148,0.00043392,83522.0,83517.0,0.01454085]
[1742139994311,0.00399643,83521.0,83517.0,0.01554085]
[1742139994920,0.00399643,83521.0,83519.0,0.01454085]
[1742139995137,0.00399643,83521.0,83519.0,0.01554085]
[1742139995342,0.02108362,83525.0,83517.0,0.00651385]
[1742139995607,0.2515892,83526.0,83517.0,0.00651385]
[1742139995726,0.02068552,83526.0,83522.0,0.239455]
[1742139995925,0.02068552,83526.0,83523.0,0.251425]
[1742139996130,0.02068552,83526.0,83522.0,0.239455]
[1742139996492,0.02068552,83526.0,83524.0,0.23945]
[1742139996701,0.02068552,83526.0,83523.0,0.251424]
[1742139996702,0.00044637,83525.0,83523.0,0.251424]
[1742139997117,0.02068552,83526.0,83523.0,0.251424]
[1742139997442,0.02068552,83526.0,83525.0,0.011972]
[1742139998369,0.0001692,83526.0,83525.0,0.02651285]
[1742140000293,0.0001692,83526.0,83525.0,0.02851285]
[1742140000970,0.0001692,83526.0,83525.0,0.03151285]
[1742140002453,0.0001692,83526.0,83525.0,0.16811285]
[1742140010489,0.0001692,83526.0,83525.0,0.16930992]
[1742140010665,0.0001692,83526.0,83525.0,0.24790992]
[1742140010893,0.0001692,83526.0,83525.0,0.24671285]
[1742140016795,0.0001692,83526.0,83525.0,0.29371285]
[1742140017272,0.0001692,83526.0,83525.0,0.15711285]
[1742140017483,0.0001692,83526.0,83525.0,0.29371285]
[1742140018866,0.0001692,83526.0,83525.0,0.68894211]
[1742140023474,0.0001692,83526.0,83525.0,0.50534211]
[1742140023695,0.0001692,83526.0,83525.0,0.56330211]
[1742140025462,0.0001692,83526.0,83525.0,0.42674211]
[1742140025674,0.0001692,83526.0,83525.0,0.56330211]
[1742140025871,0.0001692,83526.0,83525.0,0.40022926]
[1742140026068,0.0001692,83526.0,83525.0,0.65165026]
[1742140026069,0.00417815,83526.0,83525.0,0.65165026]
[1742140026276,0.0001692,83526.0,83525.0,0.65165026]
[1742140026700,0.0001692,83526.0,83525.0,0.66619111]
[1742140027119,0.00418702,83526.0,83525.0,0.66619111]
[1742140027274,0.0001692,83526.0,83525.0,0.66619111]
[1742140027477,0.03039932,83526.0,83525.0,0.66619111]
[1742140027880,0.00418702,83526.0,83525.0,0.66619111]
[1742140028538,0.2396152,83526.0,83525.0,0.41477011]
[1742140028700,0.0001692,83526.0,83525.0,0.41477011]
[1742140028901,0.00418134,83526.0,83525.0,0.41477011]
[1742140029396,0.0305539,83526.0,83525.0,0.41477011]
[1742140029583,0.00418134,83526.0,83525.0,0.41477011]
[1742140029984,0.01615334,83526.0,83525.0,0.005]
[1742140030538,0.04244446,83526.0,83525.0,0.005]
[1742140031423,0.04244446,83526.0,83525.0,0.003]
[1742140031621,0.011973,83521.0,83520.0,0.0003382]
[1742140031826,0.01596953,83521.0,83520.0,0.0003382]
[1742140032688,0.251442,83518.0,83513.0,0.24467245]
[1742140033106,0.24348086,83517.0,83513.0,0.24467245]
[1742140033677,0.00400786,83517.0,83513.0,0.24467245]
[1742140033904,0.00400786,83517.0,83514.0,0.239479]
[1742140035302,0.24348186,83517.0,83513.0,0.003]
[1742140035495,0.00400786,83517.0,83513.0,0.242481]
[1742140035702,0.25545386,83517.0,83513.0,0.239481]
[1742140035905,0.00400786,83517.0,83514.0,0.242478]
[1742140036383,0.00400786,83517.0,83514.0,0.239478]
[1742140037015,0.251439,83519.0,83514.0,0.239478]
[1742140037210,0.24347414,83518.0,83514.0,0.0033384]
[1742140037874,0.25544714,83518.0,83514.0,0.0033384]
[1742140038451,0.011973,83515.0,83514.0,0.0003384]
[1742140038715,0.25547866,83515.0,83514.0,0.0033384]
[1742140038854,0.33367866,83515.0,83514.0,0.0053384]
[1742140039047,0.35266343,83515.0,83514.0,0.0053384]
[1742140039250,0.67887866,83515.0,83514.0,0.0023384]
[1742140039456,0.67887866,83515.0,83514.0,0.0053384]
[1742140039637,0.30067866,83515.0,83514.0,0.0033384]
[1742140039848,0.239488,83512.0,83506.0,0.011975]
[1742140040058,0.011974,83510.0,83503.0,0.011975]
[1742140040284,0.011976,83495.0,83491.0,0.39522926]
[1742140040482,0.239541,83493.0,83488.0,0.01454085]
[1742140040845,0.011974,83509.0,83502.0,0.011975]
[1742140041044,0.251457,83513.0,83505.0,0.011975]
[1742140041195,0.251463,83511.0,83505.0,0.251479]
[1742140041399,0.25187601,83511.0,83505.0,0.251479]
[1742140041596,0.25187601,83511.0,83506.0,0.011975]
[1742140041597,0.01238701,83511.0,83506.0,0.011975]
[1742140041803,0.00041301,83511.0,83510.0,0.011974]
[1742140042390,0.00141301,83511.0,83510.0,0.011974]
[1742140042819,0.00141301,83511.0,83508.0,0.251469]
[1742140043195,0.00241301,83511.0,83508.0,0.251469]
[1742140043397,0.00041301,83511.0,83508.0,0.251469]
[1742140043791,0.011974,83509.0,83505.0,0.01454085]
[1742140043993,0.251503,83498.0,83491.0,0.011977]
[1742140044197,0.251503,83498.0,83492.0,0.148577]
[1742140044496,0.251503,83498.0,83489.0,0.011977]
[1742140044497,0.239532,83496.0,83489.0,0.011977]
[1742140044725,0.011975,83501.0,83493.0,0.011977]
[1742140044925,0.251486,83504.0,83498.0,0.251501]
[1742140045089,0.239519,83501.0,83496.0,0.251507]
[1742140045546,0.239522,83500.0,83494.0,0.251512]
[1742140045749,0.251492,83502.0,83496.0,0.011976]
[1742140045953,0.239496,83509.0,83502.0,0.239513]
[1742140046164,0.011975,83503.0,83498.0,0.002]
[1742140046365,0.251499,83499.0,83498.0,0.002]
[1742140047098,0.251505,83497.0,83496.0,0.002]
[1742140047464,0.239555,83488.0,83487.0,0.0003384]
[1742140048759,0.239551,83490.0,83487.0,0.0003384]
[1742140049063,0.251531,83489.0,83487.0,0.0003384]
[1742140049244,0.251531,83489.0,83487.0,0.0023384]
[1742140049439,0.00407004,83488.0,83487.0,0.0023384]
[1742140049664,0.00407004,83488.0,83487.0,0.0043384]
[1742140050020,0.00407004,83488.0,83487.0,0.0003384]
[1742140050421,0.01604704,83488.0,83487.0,0.0043384]
[1742140052026,0.25560304,83488.0,83482.0,0.2348864]
[1742140052433,0.25560304,83488.0,83482.0,0.2468644]
[1742140052816,0.25560304,83488.0,83487.0,0.004]
[1742140053047,0.25560304,83488.0,83487.0,0.002]
[1742140053259,0.25560304,83488.0,83482.0,0.2468644]
[1742140053260,0.00407004,83488.0,83486.0,0.011978]
[1742140053546,0.011977,83492.0,83487.0,0.251532]
[1742140053687,0.239521,83500.0,83495.0,0.011976]
[1742140053894,0.00407004,83496.0,83492.0,0.011977]
[1742140054573,0.00407004,83496.0,83491.0,0.315345]
[1742140054574,0.25558004,83496.0,83491.0,0.315345]
[1742140054836,0.25558004,83496.0,83493.0,0.239538]
[1742140054837,0.00407004,83496.0,83493.0,0.239538]
[1742140055037,0.00407004,83496.0,83495.0,0.011976]
[1742140055210,0.251491,83502.0,83496.0,0.251508]
[1742140055408,0.239504,83506.0,83498.0,0.011976]
[1742140055613,0.011974,83512.0,83505.0,0.239503]
[1742140055812,0.011974,83513.0,83507.0,0.251474]
[1742140055813,0.239486,83513.0,83507.0,0.251474]
[1742140056014,0.27800334,83513.0,83505.0,0.239506]
[1742140056415,0.25147,83509.0,83505.0,0.239506]
[1742140056634,0.011974,83509.0,83505.0,0.239506]
[1742140057053,0.00241301,83511.0,83507.0,0.011975]
[1742140057265,0.00241301,83511.0,83510.0,0.251466]
[1742140057453,0.00141301,83511.0,83510.0,0.251466]
[1742140057650,0.00041301,83511.0,83510.0,0.251466]
[1742140057863,0.00079587,83511.0,83510.0,0.251466]
[1742140058315,0.00179587,83511.0,83510.0,0.251466]
[1742140058504,0.24128687,83511.0,83507.0,0.01454085]
[1742140058700,0.01376987,83511.0,83507.0,0.01454085]
[1742140058919,0.239493,83510.0,83507.0,0.01454085]
[1742140059323,0.00039154,83509.0,83507.0,0.01454085]
[1742140060309,0.00039154,83509.0,83508.0,0.011974]
[1742140060479,0.00056084,83509.0,83508.0,0.011974]
[1742140062165,0.00056084,83509.0,83507.0,0.01454085]
[1742140063109,0.00056084,83509.0,83508.0,0.011974]
[1742140064117,0.011976,83500.0,83494.0,0.011976]
[1742140064281,0.011976,83500.0,83499.0,0.37922926]
[1742140064606,0.01238498,83500.0,83499.0,0.37922926]
[1742140065188,0.011978,83483.0,83478.0,0.081]
[1742140065584,0.01235262,83483.0,83478.0,0.092979]
[1742140065971,0.25192162,83483.0,83478.0,0.33256]
[1742140066187,0.25192162,83483.0,83472.0,0.286799]
[1742140066188,0.25192162,83483.0,83470.0,0.081]
[1742140066367,0.25192162,83483.0,83472.0,0.01454085]
[1742140066569,0.25192162,83483.0,83482.0,0.0033386]
[1742140067238,0.25192162,83483.0,83482.0,0.0003386]
[1742140068647,0.32976213,83483.0,83482.0,0.0003386]
[1742140069095,0.33387583,83483.0,83482.0,0.0003386]
[1742140069473,0.33487583,83483.0,83482.0,0.0003386]
[1742140070323,0.33387583,83483.0,83482.0,0.0003386]
[1742140070523,0.71677583,83483.0,83482.0,0.0003386]
[1742140070948,1.11284483,83483.0,83482.0,0.0003386]
[1742140071267,1.11384483,83483.0,83482.0,0.0003386]
[1742140071462,0.251613,83462.0,83456.0,0.239645]
[1742140071657,0.251613,83462.0,83457.0,4.131e-05]
[1742140071865,0.00442891,83461.0,83457.0,4.131e-05]
[1742140072221,0.00442891,83461.0,83457.0,0.25166531]
[1742140072438,0.00442891,83461.0,83458.0,0.251621]
[1742140072840,0.00442891,83461.0,83457.0,0.01202331]
[1742140073036,0.00442891,83461.0,83457.0,0.00504131]
[1742140073260,0.24406391,83461.0,83457.0,0.00504131]
[1742140073448,0.011981,83459.0,83457.0,0.00504131]
[1742140073647,0.011981,83459.0,83457.0,4.131e-05]
[1742140073847,0.25604491,83461.0,83458.0,0.005]
[1742140074049,0.25604391,83461.0,83458.0,0.005]
[1742140075486,0.251619,83460.0,83458.0,0.003]
[1742140075686,0.00025776,83459.0,83458.0,0.003]
[1742140076064,0.01223876,83459.0,83458.0,0.003]
[1742140076789,0.00025776,83459.0,83458.0,0.003]
[1742140077312,0.00025776,83459.0,83458.0,0.004]
[1742140077469,0.00025776,83459.0,83458.0,0.008]
[1742140078571,0.00025776,83459.0,83458.0,0.004]
[1742140078953,0.00025776,83459.0,83458.0,0.008]
[1742140080926,0.03536927,83459.0,83458.0,0.008]
[1742140081269,0.02338827,83459.0,83458.0,0.008]
[1742140081480,0.02338827,83459.0,83458.0,0.019982]
[1742140081675,0.02313051,83459.0,83458.0,0.019982]
[1742140082047,0.00411993,83459.0,83458.0,0.019982]
[1742140082353,0.02379151,83470.0,83469.0,0.01198]
[1742140082527,0.01198,83471.0,83466.0,0.01198]
[1742140082827,0.0044028,83470.0,83466.0,0.01198]
[1742140083028,0.01198,83469.0,83464.0,0.239622]
[1742140083169,0.01198,83469.0,83460.0,0.011981]
[1742140083170,0.2516,83466.0,83460.0,0.251615]
[1742140083639,0.01198,83466.0,83461.0,0.251612]
[1742140083840,0.01198,83466.0,83462.0,0.239628]
[1742140084105,0.00412265,83465.0,83462.0,0.239628]
[1742140084514,0.251597,83467.0,83462.0,0.239628]
[1742140084714,0.00440265,83466.0,83462.0,0.239628]
[1742140084848,0.01638265,83466.0,83461.0,0.251612]
[1742140085066,0.251602,83465.0,83462.0,0.002]
[1742140085329,0.00440265,83466.0,83463.0,0.251605]
[1742140086128,0.00440265,83466.0,83464.0,0.239622]
[1742140086364,0.00440265,83466.0,83465.0,0.011981]
[1742140086725,0.02381742,83472.0,83467.0,0.01198]
[1742140087048,0.00029727,83471.0,83469.0,0.239607]
[1742140087257,0.00029727,83471.0,83469.0,0.251587]
[1742140087492,0.00029727,83471.0,83470.0,0.08858]
[1742140087695,0.239567,83484.0,83470.0,0.10312085]
[1742140087896,0.011978,83485.0,83470.0,0.10312085]
[1742140087897,0.011979,83478.0,83470.0,0.08858]
[1742140088068,0.251584,83472.0,83470.0,0.0766]
[1742140088272,0.25195231,83480.0,83472.0,0.01198]
[1742140088492,0.251562,83479.0,83472.0,0.01198]
[1742140089171,0.25195231,83480.0,83475.0,0.251568]
[1742140089351,0.25195231,83480.0,83475.0,0.011979]
[1742140089662,0.0230089,83481.0,83476.0,0.251567]
[1742140089890,0.0230089,83481.0,83477.0,0.251564]
[1742140090003,0.23958,83480.0,83476.0,0.011979]
[1742140090207,0.001,83479.0,83475.0,0.251571]
[1742140090453,0.00130301,83479.0,83475.0,0.251571]
[1742140090649,0.00030301,83479.0,83475.0,0.251571]
[1742140091423,0.00030301,83479.0,83476.0,0.251566]
[1742140091585,0.00030301,83479.0,83477.0,0.251564]
[1742140091768,0.004,83481.0,83479.0,0.239581]
[1742140091967,0.00030302,83478.0,83475.0,0.251565]
[1742140092265,0.011978,83480.0,83475.0,0.251565]
[1742140092485,0.00032182,83479.0,83475.0,0.251565]
[1742140092686,0.011978,83480.0,83475.0,0.251565]
[1742140093036,0.00441947,83479.0,83475.0,0.251565]
[1742140093165,0.00541947,83479.0,83475.0,0.251565]
[1742140093375,0.24500147,83479.0,83475.0,0.251565]
[1742140093578,0.239591,83476.0,83471.0,0.239603]
[1742140093804,0.25157,83476.0,83472.0,0.239599]
[1742140094007,0.00031896,83475.0,83472.0,0.239599]
[1742140094370,0.00031896,83475.0,83472.0,0.251579]
[1742140094571,0.00031896,83475.0,83473.0,0.251575]
[1742140094908,0.251564,83478.0,83473.0,0.251575]
[1742140095111,0.00441944,83477.0,83474.0,0.011979]
[1742140095471,0.239589,83476.0,83472.0,0.251579]
[1742140095703,0.01639844,83477.0,83472.0,0.251579]
[1742140096692,0.01639844,83477.0,83472.0,0.252579]
[1742140097095,0.00441944,83477.0,83475.0,0.251569]
[1742140097302,0.239565,83485.0,83479.0,0.011979]
[1742140097510,0.00441895,83482.0,83479.0,0.011979]
[1742140097714,0.00441895,83482.0,83480.0,0.239577]
[1742140097936,0.00441895,83482.0,83480.0,0.251555]
[1742140098849,0.00441895,83482.0,83481.0,0.087278]
[1742140099048,0.00441895,83482.0,83481.0,0.10181885]
[1742140099257,0.001,83482.0,83481.0,0.10181885]
[1742140100446,0.02362365,83491.0,83486.0,0.011978]
[1742140100851,0.00442338,83490.0,83486.0,0.010978]
[1742140102067,0.00442338,83490.0,83488.0,0.25153]
[1742140102351,0.001,83491.0,83489.0,0.23955]
[1742140102552,0.00442347,83490.0,83489.0,0.251527]
[1742140102762,0.001,83491.0,83490.0,0.02651785]
[1742140103064,0.03505656,83500.0,83493.0,0.011977]
[1742140103288,0.239531,83497.0,83492.0,0.251518]
[1742140103626,0.239532,83496.0,83492.0,0.251518]
[1742140104579,0.251504,83498.0,83493.0,0.251515]
[1742140105071,0.001,83496.0,83493.0,0.251516]
[1742140105242,0.001,83496.0,83494.0,0.239536]
[1742140105794,0.251489,83503.0,83495.0,0.011976]
[1742140106004,0.251489,83503.0,83497.0,0.239527]
[1742140106291,0.011975,83505.0,83501.0,0.239516]
[1742140106436,0.011975,83502.0,83497.0,0.0461]
[1742140106644,0.001,83498.0,83493.0,0.011977]
[1742140107242,0.011975,83501.0,83494.0,0.011976]
[1742140107649,0.014975,83505.0,83491.0,0.239545]
[1742140107650,0.003,83505.0,83495.0,0.011976]
[1742140107906,0.239514,83503.0,83498.0,0.251501]
[1742140108240,0.239514,83503.0,83498.0,0.250501]
[1742140108754,0.011974,83510.0,83504.0,0.011975]
[1742140109097,0.00041301,83507.0,83504.0,0.333081]
[1742140109345,0.00041301,83507.0,83505.0,0.239505]
[1742140109683,0.00041301,83507.0,83506.0,0.011975]
[1742140109894,0.00041301,83507.0,83506.0,0.006975]
[1742140110127,0.00041301,83507.0,83506.0,0.056875]
[1742140110464,0.00141301,83507.0,83506.0,0.056875]
[1742140111290,0.00041301,83507.0,83506.0,0.07141585]
[1742140112381,0.00058241,83507.0,83506.0,0.07141585]
[1742140113159,0.00058241,83507.0,83506.0,0.07441585]
[1742140113569,0.00058241,83507.0,83506.0,0.07341585]
[1742140113802,0.00058241,83507.0,83506.0,0.07141585]
[1742140114123,0.00058241,83507.0,83506.0,0.07441585]
[1742140114502,0.00058241,83507.0,83506.0,0.07641585]
[1742140119550,0.00058241,83507.0,83506.0,0.07761324]
[1742140119782,0.00058241,83507.0,83506.0,0.07641585]
[1742140120558,0.00058241,83507.0,83506.0,0.07761319]
[1742140120785,0.00058241,83507.0,83506.0,0.15921319]
[1742140122062,0.00058241,83507.0,83506.0,0.15621319]
[1742140122578,0.00058241,83507.0,83506.0,0.15821319]
[1742140122919,0.00058241,83507.0,83506.0,0.15721319]
[1742140123343,0.00058241,83507.0,83506.0,0.16021319]
[1742140123549,0.00058241,83507.0,83506.0,0.15901585]
[1742140123755,0.00058241,83507.0,83506.0,0.16501585]
[1742140124044,0.00058241,83507.0,83506.0,0.15935445]
[1742140124831,0.00058241,83507.0,83506.0,0.1448136]
[1742140125040,0.00058241,83507.0,83506.0,0.0949136]
[1742140125247,0.00058241,83507.0,83506.0,0.2374736]
[1742140125445,0.00058241,83507.0,83506.0,0.25201445]
[1742140126346,0.00058241,83507.0,83506.0,0.24001445]
[1742140126585,0.00058241,83507.0,83506.0,0.0003386]
[1742140126799,0.00058241,83507.0,83506.0,0.0043386]
[1742140126954,0.0048479,83507.0,83506.0,0.0093386]
[1742140127585,0.00058241,83507.0,83506.0,0.0173136]
[1742140128007,0.00058241,83507.0,83506.0,0.0193136]
[1742140128212,0.00058241,83507.0,83506.0,0.02885445]
[1742140129153,0.00058241,83507.0,83506.0,0.03185445]
[1742140129355,0.00058241,83507.0,83506.0,0.02985445]
[1742140129547,0.00058241,83507.0,83506.0,0.03185445]
[1742140129758,0.00058241,83507.0,83506.0,0.07765445]
[1742140129958,0.00058241,83507.0,83506.0,0.07965445]
[1742140130847,0.00058241,83507.0,83506.0,0.07765445]
[1742140131141,0.00058241,83507.0,83506.0,0.08165445]
[1742140131903,0.00058241,83507.0,83506.0,0.07965445]
[1742140132242,0.00058241,83507.0,83506.0,0.21621445]
[1742140132445,0.00058241,83507.0,83506.0,0.08365445]
[1742140132643,0.00058241,83507.0,83506.0,0.22021445]
[1742140133823,0.00058241,83507.0,83506.0,0.22141179]
[1742140134440,0.00058241,83507.0,83506.0,0.22021445]
[1742140135482,0.00058241,83507.0,83506.0,0.17141445]
[1742140140373,0.00058241,83507.0,83506.0,0.17261183]
[1742140140587,0.00058241,83507.0,83506.0,0.67624109]
[1742140140830,0.00058241,83507.0,83506.0,0.97504371]
[1742140141436,0.00058241,83507.0,83506.0,0.97104371]
[1742140141838,0.00058241,83507.0,83506.0,0.97704371]
[1742140142485,0.00058241,83507.0,83506.0,0.97304371]
[1742140143136,0.00058241,83507.0,83506.0,0.97904371]
[1742140144689,4.1e-07,83507.0,83506.0,0.97904371]
[1742140145256,4.1e-07,83507.0,83506.0,0.97304371]
[1742140145456,4.1e-07,83507.0,83506.0,0.97904371]
[1742140145694,4.1e-07,83507.0,83506.0,0.97304371]
[1742140146664,4.1e-07,83507.0,83506.0,0.97904371]
[1742140147346,7.1e-07,83509.0,83508.0,0.40431485]
[1742140147617,0.00011443,83509.0,83508.0,0.40431485]
[1742140148589,0.00011443,83509.0,83508.0,0.41031485]
[1742140149105,0.00011443,83509.0,83508.0,0.41631485]
[1742140150446,0.3,83555.0,83534.0,0.011971]
[1742140150647,0.239407,83540.0,83535.0,0.25395785]
[1742140152181,0.04060532,83541.0,83535.0,0.26592885]
[1742140152829,0.01624287,83543.0,83535.0,0.02651185]
[1742140152988,0.25564187,83543.0,83537.0,0.239413]
[1742140153185,0.01876666,83540.0,83535.0,0.01454085]
[1742140154646,0.23981298,83539.0,83532.0,0.239427]
[1742140154844,0.251383,83538.0,83533.0,0.01454085]
[1742140155074,0.239416,83537.0,83533.0,0.01454085]
[1742140155228,0.239819,83537.0,83533.0,0.01454085]